Cogmind - Beta 13 X1 @@@ ROGUE MODE // 2023.06.21 @ 23:19:15 Player: Cracklepappy Result: Destroyed by DU-KDT(R) with Subdweller Laser Performance ------------- Evolutions (0) 0 Regions Visited (2) 400 Robots Destroyed (29) 145 Value Destroyed (772) 772 Prototype IDs (2) 40 Alien Tech Used (0) 0 Bonus (0) 0 TOTAL SCORE: 1357 Bonus ------- None Cogmind --------- Core Integrity 0/250 Matter 226/300 Energy 14/100 System Corruption 0% Temperature Cool (6) Movement Walking (260) Ox2 Location -10/Subcaves Parts ------- > --- POWER (1) -------- (None) > --- PROPULSION (2) --- Aluminum Leg > --- UTILITY (2) ------ Large Storage Unit Light Armor Plating > --- WEAPON (2) ------- Medium Laser Subdweller Laser > --- INVENTORY (15) --- Ion Engine Compact Wheel Light Armor Plating Beam Cannon Light Assault Rifle Light Cannon Light Cannon Light Cannon Light Cannon Light Cannon Mining Laser Peak State ------------ > --- POWER ------------ Light Nuclear Core > --- PROPULSION ------- Light Treads Aluminum Leg > --- UTILITY ---------- Large Storage Unit Light Armor Plating > --- WEAPON ----------- Subdweller Laser Light Cannon > --- INVENTORY -------- Ion Engine Aluminum Leg Compact Wheel Light Armor Plating Medium Laser Beam Cannon Light Assault Rifle Light Cannon Light Cannon Light Cannon Light Cannon Mining Laser [Rating: 11] Favorites ----------- Power Light Nuclear Core Engine Ion Engine Power Core Light Nuclear Core Propulsion Light Treads Treads Light Treads Leg Aluminum Leg Wheel Compact Wheel Utility Large Storage Unit Storage Large Storage Unit Protection Light Armor Plating Weapon Light Cannon Energy Gun Medium Laser Ballistic Gun Assault Rifle Ballistic Cannon Light Cannon Special Weapon Mining Laser Build | -11 -10 -10 ------- Run | Jun Mat Sub Slots Evolved . | . . . Power . | . . . Propulsion . | . . . Utility . | . . . Weapon . | . . . Parts Attached 30 | 7 14 9 Power 3 | 1 2 . Engine 2 | 1 1 . Core 1 | . 1 . Reactor . | . . . Propulsion 9 | 2 4 3 Treads 5 | 1 3 1 Leg 2 | . . 2 Wheel 2 | 1 1 . Hover . | . . . Flight . | . . . Utility 7 | 2 4 1 Device . | . . . Storage 3 | 2 1 . Processor . | . . . Hackware . | . . . Protection 4 | . 3 1 Artifact . | . . . Weapon 11 | 2 4 5 Energy Gun 3 | 1 . 2 Energy Cannon . | . . . Ballistic Gun 3 | 1 2 . Ballistic Cannon 3 | . 2 1 Launcher . | . . . Special Weapon 2 | . . 2 Impact Weapon . | . . . Slashing Weapon . | . . . Piercing Weapon . | . . . Special Melee Weapon . | . . . Unidentified Prototypes . | . . . Parts Lost 8 | . 2 6 Power 1 | . . 1 Propulsion 4 | . . 4 Utility 1 | . . 1 Weapon 2 | . 2 . Highest Loss Streak 3 | . 1 3 To Critical Strikes . | . . . Average Slot Usage (%) 98 | . 98 98 Engine 4 | . 7 . Core 9 | . 6 13 Treads 20 | . 18 22 Leg 1 | . . 4 Wheel 5 | . 9 . Storage 14 | . 14 14 Protection 13 | . 12 14 Energy Gun 6 | . 8 3 Ballistic Gun 9 | . 16 . Ballistic Cannon 10 | . 2 22 Naked Turns . | . . . Heaviest Build 34 | 14 34 34 Greatest Support 40 | 16 40 40 Greatest Overweight (x) 1 | . 1 1 Average Overweight (x) . | . . . Largest Inventory Capacity 15 | 8 15 15 Average Capacity 14 | 7 14 15 Most Carried 15 | 8 15 15 Average Carried 13 | 5 13 13 Final Capacity 15 | 8 15 15 Final Carried 15 | 8 15 11 Class Distribution -------------------- 100% | Mutant Dominant Class ---------------- Mutant | -10/Materials Mutant | -10/Subcaves Resources | -11 -10 -10 ----------- Run | Jun Mat Sub Matter Collected 924 | 288 442 194 Remotely . | . . . Salvage Created 1115 | 132 773 210 Parts 57 | 10 33 14 Haulers Intercepted 2 | . 2 . Recyclers Shooed . | . . . Parts Field Recycled . | . . . Retrieved Matter . | . . . Parts Self-Destructed . | . . . Prevented . | . . . Kills | -11 -10 -10 ------- Run | Jun Mat Sub Combat Hostiles Destroyed 21 | . 14 7 Guns 16 | . 14 2 Cannons 5 | . . 5 Classes Destroyed 8 | 2 4 2 Tunneler 2 | 2 . . Hauler 2 | . 2 . Recycler 2 | 1 1 . Watcher 2 | . 2 . Swarmer 3 | . 3 . Grunt 11 | . 11 . Artisan 1 | . . 1 Subdweller 7 | . . 7 Best Kill Streak 3 | 2 3 2 Combat Bots Only 3 | . 3 2 Max Kills in Single Turn 1 | 1 1 1 Gunslinging . | . . . Exploded . | . . . Melee . | . . . Uniques/NPCs Destroyed . | . . . Combat | -11 -10 -10 -------- Run | Jun Mat Sub Damage Taken 1697 | . 676 1021 Core 267 | . 92 175 Absorbed by Shields . | . . . Core Remaining (%) 100 | 100 . . Volleys Fired 133 | 6 79 48 Largest 2 | 2 2 2 Hottest 110 | 70 70 110 Shots Fired 256 | 12 158 86 Gun 201 | 12 158 31 Cannon 52 | . . 52 Launcher . | . . . Special 3 | . . 3 Kinetic 174 | 6 116 52 Thermal 82 | 6 42 34 Explosive . | . . . Electromagnetic . | . . . Robot Hit Streak 23 | 3 8 23 Robot Miss Streak 4 | 3 4 2 Penetration Max . | . . . Secondary Targets 2 | . 2 . Max Gunslinging Chain 1 | . 1 . Shots Hit Robots 178 | 6 111 61 Core Hits 55 | 4 34 17 Critical Kills 1 | . 1 . Critical Parts Destroyed . | . . . Critical Strikes 5 | . 4 1 Burn 4 | . 3 1 Destroy 1 | . 1 . Melee Attacks . | . . . Impact . | . . . Slashing . | . . . Piercing . | . . . Sneak Attacks . | . . . Combat Hostiles . | . . . Follow-up Attacks . | . . . Damage Inflicted 2335 | 69 1416 850 Guns 1798 | 69 1413 316 Cannons 534 | . . 534 Explosions . | . . . Melee . | . . . Ramming 3 | . 3 . Kinetic 1619 | 56 1029 534 Thermal 713 | 13 384 316 Explosive . | . . . Electromagnetic . | . . . Impact . | . . . Slashing . | . . . Piercing . | . . . Highest Corruption . | . . . Average Corruption . | . . . Corruption Purged . | . . . Corruption Blocked . | . . . Overload Shots . | . . . Overflow Damage . | . . . Projectiles . | . . . Explosions . | . . . Melee . | . . . Knockbacks 4 | . . 4 Impact . | . . . Kinetic 4 | . . 4 Secondary . | . . . Self-Inflicted Damage . | . . . Shots . | . . . Rammed 1 | . 1 . Targets Rammed 1 | . 1 . Kicked . | . . . Crushed . | . . . Highest Temperature 210 | 38 210 36 Average Temperature 37 | 14 41 12 Received Heat Transfer 474 | . 318 156 Siege Activations . | . . . Robots Corrupted . | . . . Combat Hostiles . | . . . Parts Fried . | . . . Impact Corruptions . | . . . Robots Melted . | . . . Combat Hostiles . | . . . Parts Melted 6 | . 4 2 Heat Transferred 2112 | 37 1369 706 Parts Sabotaged . | . . . Parts Stolen . | . . . Parts Stripped . | . . . Power Chain Reactions . | . . . Missiles Intercepted . | . . . Alert | -11 -10 -10 ------- Run | Jun Mat Sub Peak Influence 195 | 15 195 . Initial 9 | . 9 . Average 70 | 5 75 . Maximum Alert Level . | . . . Low Security (%) 100 | 100 100 . Level 1 . | . . . Level 2 . | . . . Level 3 . | . . . Level 4 . | . . . Level 5 . | . . . High Security . | . . . Max Security . | . . . Squads Dispatched 4 | . 4 . Investigation 3 | . 3 . Extermination . | . . . Reinforcement 1 | . 1 . Assault . | . . . Garrison . | . . . Intercept . | . . . Searches Triggered . | . . . Construction Impeded . | . . . Haulers Reinforced . | . . . Active Scanning Responses . | . . . Cargo Convoy Interrupts . | . . . Stealth | -11 -10 -10 --------- Run | Jun Mat Sub Distress Signals 2 | . 2 . Communications Jammed . | . . . Distress Signals . | . . . Times Spotted 30 | . 22 8 Peak Tracking Total 3 | . 3 2 Tactical Retreats 1 | . 1 . Traps | -11 -10 -10 ------- Run | Jun Mat Sub Traps Triggered 4 | . 4 . Indirectly . | . . . Trap Hack Attempts . | . . . Triggered . | . . . Disarmed . | . . . Reprogrammed . | . . . Reused . | . . . Traps Extracted . | . . . Installed . | . . . Triggered . | . . . Machines | -11 -10 -10 ---------- Run | Jun Mat Sub Machines Disabled . | . . . Max in Single Turn . | . . . Machines Repaired . | . . . Machines Sabotaged . | . . . Overloaded Fab Kills . | . . . Hacking | -11 -10 -10 --------- Run | Jun Mat Sub Machines Accessed 5 | . 5 . Terminals 3 | . 3 . Fabricators . | . . . Repair Stations . | . . . Recycling Units 2 | . 2 . Scanalyzers . | . . . Garrison Access . | . . . Total Hacks 11 | . 11 . Successful 6 | . 6 . Failed 5 | . 5 . Catastrophic . | . . . Database Lockouts . | . . . Manual 2 | . 2 . Terminals 7 | . 7 . Fabricators . | . . . Repair Stations . | . . . Recycling Units 4 | . 4 . Scanalyzers . | . . . Garrison Access . | . . . Terminal Hacks 4 | . 4 . Prototype ID Bank 2 | . 2 . Hauler Manifests 2 | . 2 . Fabricator Hacks . | . . . Repair Station Hacks . | . . . Recycling Unit Hacks 2 | . 2 . Retrieve Components 2 | . 2 . Scanalyzer . | . . . Garrison Access Hacks . | . . . Unauthorized Hacks . | . . . Terminals . | . . . Fabricators . | . . . Repair Stations . | . . . Recycling Units . | . . . Scanalyzers . | . . . Garrison Access . | . . . Data Cores Recovered . | . . . Used . | . . . Hacking Detections 5 | . 5 . Full Trace Events . | . . . Feedback Events . | . . . Feedback Blocked . | . . . Robot Schematics Acquired . | . . . Robots Built . | . . . Authchips . | . . . Time . | . . . Total Robot Build Rating . | . . . Part Schematics Acquired . | . . . Parts Built . | . . . Authchips . | . . . Time . | . . . Total Part Build Rating . | . . . Parts Repaired . | . . . Time . | . . . Parts Recycled . | . . . Recycled Matter . | . . . Retrieved Matter . | . . . Retrieved Components 7 | . 7 . Parts Scanalyzed . | . . . Part Schematics Acquired . | . . . Parts Damaged . | . . . Bothacking | -11 -10 -10 ------------ Run | Jun Mat Sub Used RIF Installer . | . . . Robots Hacked . | . . . Non-combat . | . . . Combat . | . . . Robot Hacks Applied . | . . . Relay Couplers Released . | . . . Fabnet Peak Effective % . | . . . Robots Rewired . | . . . Allies Hacked . | . . . Hacks Repelled . | . . . Allies | -11 -10 -10 -------- Run | Jun Mat Sub Total Allies . | . . . Largest Group . | . . . Highest-Rated Group . | . . . Highest-Rated Ally . | . . . Total Orders . | . . . Ally Attacks . | . . . Total Damage . | . . . Kills . | . . . Allies Corrupted . | . . . Allies Melted . | . . . Intel | -11 -10 -10 ------- Run | Jun Mat Sub Robot Analysis Total . | . . . Derelict Logs Recovered 1 | . . 1 Drone Launches . | . . . Drone Recoveries . | . . . Exploration | -11 -10 -10 ------------- Run | Jun Mat Sub Turns Passed 2311 | 115 1340 856 Spaces Moved 1236 | 73 773 390 Core 3 | 3 . . Treads 581 | . 191 390 Legs . | . . . Wheels 652 | 70 582 . Hover . | . . . Flight . | . . . Fastest Speed 50 | 50 100 160 Average Speed 139 | 97 124 177 Slowest Speed 240 | 100 160 240 Overloaded Moves . | . . . Propulsion Burnouts . | . . . Robots Hopped . | . . . Cave-ins Triggered . | . . . Exploration Rate (%) 47 | 4 98 39 Regions Visited 2 Branch Regions 1 Pre-discovered Areas . | . . . Known Exits Taken . | . . . Unknown Exits Taken 2 | 1 1 . Scrap Searched 1 | . . 1 Spaces Dug . | . . . Terrain Destroyed . | . . . Melee . | . . . Projectile . | . . . AOE . | . . . Terrain Rammed . | . . . Walls Destroyed . | . . . Machines Disabled . | . . . Actions | -11 -10 -10 --------- Run | Jun Mat Sub Total 1562 | 102 998 462 Wait 115 | 5 99 11 Move 1234 | 72 772 390 Hop . | . . . Pick Up 30 | 10 18 2 Fast Attach 9 | 6 3 . Attach 7 | 1 2 4 Detach . | . . . Swap 14 | . 9 5 Drop 19 | 2 15 2 Fire 133 | 6 79 48 Melee . | . . . Ram . | . . . Kick . | . . . Crush 1 | . 1 . Escape Stasis . | . . . Rewire . | . . . Trap . | . . . Miscellaneous . | . . . Route ------- -11/Junkyard -10/Materials (discovered 6 exits: [*Mat x3] / [*Min x2] / [*Sub]) -10/Subcaves (discovered 2 exits: [*Mat] / [*Mat]) History --------- Turn | Location | Event 15 | -11/Junkyard | Discovered new exit (range 14) 116 | -11/Junkyard | Entered Materials 141 | -10/Materials | Discovered new exit (range 5) 308 | -10/Materials | Build established: Mutant 391 | -10/Materials | Discovered new exit (range 5) 586 | -10/Materials | Discovered new exit (range 7) 884 | -10/Materials | Discovered new exit (range 3) 915 | -10/Materials | Discovered new exit (range 14) 1076 | -10/Materials | Discovered new exit (range 11) 1456 | -10/Materials | Entered Subcaves 1463 | -10/Subcaves | Learned location of 1 exit from Materials 1469 | -10/Subcaves | Discovered new exit (range 5) 1684 | -10/Subcaves | A swath of the cavern ceiling suddenly collapsed 1827 | -10/Subcaves | Core integrity fell below 50% 1894 | -10/Subcaves | Discovered new exit (range 6) 2026 | -10/Subcaves | Core integrity fell below 20% 2233 | -10/Subcaves | Ambushed by angry Subdweller bent on revenge 2312 | -10/Subcaves | Destroyed by DU-KDT(R) with Subdweller Laser Last Messages --------------- 02024_ 54-6ED(R) knocked back. 02030_ 54-6ED(R) destroyed. 02040_ Acquired 20 matter. 02047_ Acquired 3 matter. 02175_ Acquired 2 matter. 02178_ Acquired 15 matter. 02219_ 9U-OSQ(u) cries out in pain. 02219_ 9U-OSQ(u) destroyed. 02224_ Acquired 29 matter. 02233_ LE-S3R(R) angrily emerges from the Twisted Machinery. 02233_ LE-S3R(R): "WEHOME!" 02247_ LE-S3R(R) destroyed. 02250_ Acquired 33 matter. 02280_ Lgt. Treads destroyed. 02283_ DU-KDT(R) suffers critical hit (Burn). 02290_ Lgt. Nuclear Core destroyed. 02295_ Sub. Monowheel melted. 02295_ Sub. Optics melted. 02295_ LV-1EI(R) destroyed. 02298_ Aluminum Leg destroyed. Map ----- +----------------------------------------------------+ | ??????????????????????????????????????????????? | | ??????????????????????????????????????????????? | | ??????????????????????????????????????????????? | | ??????????????????????????????????????????????? | | ??????????????????????????????????????????????? | | ??????????????????????????????????????????????? | | ?????????????????????? ???????????????????????? | | ?????????????????????# ??????????????????????? | | ?????????????????????# ??????????????????????? | | ????????????????????## ??????????????????????? | | ????????????????????# #?????????????????????? | | ??????????????????### ?????????????????????? | | ?????????????????## ?????????????????????? | | ?????????????????# #????????????????????? | | ?????????????????? #???????????????????? | | ????????????????? "" #???????????????????? | | ?????????????????? "" ######??????????????? | | ?????????????????? "" ##?????????????? | | ?????????????????? "" #?????????????? | | ???????????????????#" " #?????????????? | | ???????????????????????#" #?????????????? | | ???????????????????????## * ##?????????????? | | ????????????????????????#[ ##??????????????? | | ????????????????????????#&" #???????????????? | | ????????????????????????#%R"""##??????????????? | | ???????????????????######@ "" "#??????????????? | | ??????????????????##"" ##![ """#??????????????? | | ?????????????????##""" "##""##?????????????? | | ?????????????????#"""" | ##" "#?????????????? | | ?????????????????#""" = ""#??????????????? | | ?????????????????#""""" " ##??????????????? | | ???????####??????##""" "" ##??????????????? | | ????? ## ?????#""" "" "#??????????????? | | ????? ??### "" "" "" #?????????????? | | ???? ## ###" ##?????????????? | | ????# " ""##??###??????????????? | | ????# " ###????????????????????? | | ????# ##### &" ##?????????????????????? | | ?????###???????##### " #?????????????????????? | | ???????????????????# """#?????????????????????? | | ??? ????????????# #?????????????????????? | | ? ????????????# #?????????????????????? | | # ???????????## #?????????????????????? | | ?? ??????## #?????????????????????? | | ??# #???###???????????????? | | ? #?# #???# ##??????????????? | | ? ? ?## ##### #??????????????? | | ?# ? #?# ##??????????????? | | ?# #? #?# #???????????????? | | ?# #?# #### ### ##???????????????? | +----------------------------------------------------+ Best States ------------- Heat Dissipation 25 Energy Generation 14 Energy Capacity 250 Matter Stores 300 Matter Capacity 300 Sight Range 16 Terrain Scan Density 10 Armor Coverage 150 Utility Shielding 33 Evasion (%) 40 Recoil Reduction 2 Item Schematics ----------------- None Robot Schematics ------------------ None Fabricated ------------ Nothing Alien Tech Used ----------------- None Achievements -------------- None Challenges ------------ None Game ------ Seed DisruptorGravitonMount Manual? 0 Play Time 00:18:57 Cumulative 534.0 hours Start 2023.06.21 @ 23:03:55 End 2023.06.21 @ 23:19:15 Sessions 1 Manual Loads 0 Difficulty Rogue Special Mode None Game No. 376 Rogue 376 Adventurer 0 Explorer 0 Win Type - Total 17 Types 9/3/1/0/0/1/2/1/0 Lore% 77 Gallery% 89 Achievement% 79 Wizard Run 0 Options --------- ASCII 0 Keyboard 0 Movement Numpad Keybinds 0 Fullscreen 2 Font 24/Terminus Map View 76x50 Tactical HUD 1 Map Filters NONE Filters NONE Steam 1 RUN: 37351f08-19c2-44ba-8308-cc0254ce7457